bitfinex-derivatives/quotes_ETHF0:USTF0_20250101
["timestamp","ask_amount","ask_price","bid_price","bid_amount"]
[1735756982314,0.75428,3348.9,3348.8,0.29928]
[1735756984714,0.2993,3348.8,3348.7,0.29929]
[1735756987813,0.2993,3348.7,3348.6,0.29929]
[1735756988013,0.7675,3348.7,3348.6,0.29929]
[1735756988817,0.4682,3348.7,3348.3,0.4609]
[1735756989019,0.29932,3348.5,3348.4,0.29931]
[1735756990521,3.6759,3348.6,3347.9,0.4582]
[1735756990811,3.2078,3348.1,3347.9,0.4322]
[1735756991017,0.73345,3348.0,3347.9,0.29936]
[1735756991613,0.29938,3347.8,3347.7,0.29937]
[1735756992013,0.29939,3347.6,3347.5,0.29939]
[1735756992420,0.869,3348.0,3347.9,0.29936]
[1735756992421,0.73346,3348.0,3347.9,0.29936]
[1735756995426,0.73345,3348.0,3347.9,0.29936]
[1735756995918,3.2078,3348.1,3347.7,2.27642753]
[1735756996116,5.48422753,3348.1,3347.6,0.4264]
[1735756996316,3.2078,3347.7,3347.6,0.4264]
[1735756997322,3.50719,3347.7,3347.5,0.4322]
[1735756998916,3.2078,3347.7,3346.6,5.48422753]
[1735756999230,0.29941,3347.4,3347.1,0.4659]
[1735756999620,0.29941,3347.4,3347.2,0.29942]
[1735757000423,0.29941,3347.4,3347.1,0.76533]
[1735757001025,3.6684,3347.7,3346.9,0.4447]
[1735757001222,0.74562,3347.3,3347.0,0.29944]
[1735757001524,0.4462,3347.3,3346.9,0.4447]
[1735757001724,0.4462,3347.3,3347.1,0.29943]
[1735757001925,0.4462,3347.3,3346.9,0.4447]
[1735757002118,3.2078,3347.7,3347.6,0.29939]
[1735757004721,3.2078,3347.7,3347.3,41.7166]
[1735757005028,3.50718,3347.7,3347.4,0.29941]
[1735757005224,3.50718,3347.7,3347.5,0.2994]
[1735757005524,3.2078,3347.7,3347.3,0.4659]
[1735757005828,0.2994,3347.5,3347.3,0.4659]
[1735757006128,0.4318,3347.6,3347.3,0.4659]
[1735757006429,2.70972753,3347.5,3347.0,3.2078]
[1735757006629,0.29943,3347.1,3347.0,3.2078]
[1735757008328,0.29943,3347.1,3346.9,0.29945]
[1735757008523,0.73274,3347.0,3346.8,0.29945]
[1735757008729,3.2078,3347.2,3347.1,0.29943]
[1735757012324,0.8988,3347.5,3346.8,2.27642753]
[1735757012531,0.8988,3347.5,3347.4,0.29941]
[1735757013035,0.8988,3347.5,3347.3,0.29941]
[1735757013238,0.29941,3347.4,3347.3,0.29941]
[1735757013733,1.1982,3347.5,3347.4,0.29941]
[1735757015336,0.8988,3347.5,3347.4,0.29941]
[1735757015632,1.1982,3347.5,3347.4,0.29941]
[1735757016835,0.29941,3347.4,3347.3,0.29941]
[1735757017943,0.29942,3347.3,3347.2,0.29942]
[1735757018535,0.29943,3347.2,3347.1,0.29943]
[1735757019138,0.8988,3347.5,3346.8,2.27642753]
[1735757019437,0.8988,3347.5,3347.2,0.29942]
[1735757019636,0.29942,3347.3,3347.2,0.29942]
[1735757020042,0.8988,3347.5,3346.7,0.4563]
[1735757020237,0.29945,3347.0,3346.9,0.29945]
[1735757020541,0.29947,3346.8,3346.7,0.29947]
[1735757021042,1.21866,3346.9,3346.8,0.29946]
[1735757021846,0.9192,3346.9,3346.7,0.4535]
[1735757022045,0.29946,3346.8,3346.7,0.75296]
[1735757022247,0.29946,3346.8,3346.7,0.29946]
[1735757023348,1.21866,3346.9,3346.8,0.29946]
[1735757026450,0.9192,3346.9,3346.8,0.29946]
[1735757026750,0.45,3347.0,3346.9,0.29945]
[1735757027256,3.2078,3347.1,3347.0,0.29944]
[1735757028854,3.6701,3347.6,3347.0,1.188]
[1735757029148,3.2078,3347.6,3347.5,0.2994]
[1735757031040,3.50719,3347.6,3347.5,0.2994]
[1735757031446,3.2078,3347.6,3347.5,0.2994]
[1735757034360,3.50719,3347.6,3347.5,0.2994]
[1735757034854,3.2078,3347.6,3347.5,0.2994]
[1735757035358,3.50719,3347.6,3347.5,0.2994]
[1735757036354,3.2078,3347.6,3347.5,0.2994]
[1735757036559,3.50719,3347.6,3347.5,0.2994]
[1735757037158,3.2078,3347.6,3347.5,0.2994]
[1735757041357,3.2078,3348.3,3347.4,2.27642753]
[1735757041559,3.2078,3348.3,3348.1,0.29934]
[1735757041763,0.29935,3348.2,3348.1,0.29934]
[1735757041955,0.73905,3348.2,3348.1,0.29934]
[1735757043461,0.29936,3348.0,3347.9,0.29936]
[1735757044370,0.29935,3348.1,3348.0,0.29935]
[1735757044659,0.4397,3348.2,3347.6,3.02489753]
[1735757044862,0.4397,3348.2,3348.1,0.29934]
[1735757045055,3.2078,3348.3,3347.9,2.27642753]
[1735757045359,3.2078,3348.3,3348.2,0.29934]
[1735757048162,0.29934,3348.2,3348.1,0.29934]
[1735757048361,3.2078,3348.3,3347.7,0.4675]
[1735757048554,0.29935,3348.1,3348.0,0.29934]
[1735757050661,3.2078,3348.3,3347.7,0.4675]
[1735757050968,3.2078,3348.3,3348.2,0.29934]
[1735757051274,3.50713,3348.3,3348.2,0.29934]
[1735757051858,3.2078,3348.3,3348.2,0.29934]
[1735757053662,3.50713,3348.3,3348.2,0.29934]
[1735757055777,0.29933,3348.3,3348.2,0.29934]
[1735757058171,0.29932,3348.4,3348.3,0.29932]
[1735757058374,3.6581,3348.5,3348.0,0.74839]
[1735757058571,3.95741,3348.5,3348.4,0.29932]
[1735757063876,3.6581,3348.5,3348.4,0.29932]
[1735757064077,3.95741,3348.5,3348.4,0.29932]
[1735757064871,3.6581,3348.5,3348.4,0.29932]
[1735757065072,3.2078,3348.5,3348.4,0.29932]
[1735757067476,3.6344,3349.0,3348.5,0.74827]
[1735757067777,3.2078,3349.0,3348.9,0.29927]
[1735757068178,0.446,3349.3,3348.9,0.4507]
[1735757068371,0.446,3349.3,3349.2,0.29925]
[1735757068772,4.1007,3349.4,3348.9,1.19888]
[1735757068976,4.1007,3349.4,3349.3,0.29924]
[1735757069381,3.2078,3349.4,3349.3,0.29924]
[1735757069677,3.2078,3349.4,3349.1,3.16712753]
[1735757069678,0.2992,3349.7,3349.2,1.04735]
[1735757069975,0.2992,3349.7,3349.6,0.29921]
[1735757070379,4.1348,3349.8,3349.7,0.2992]
[1735757070774,4.43399,3349.8,3349.7,0.2992]
[1735757074680,4.1348,3349.8,3349.1,3.16712753]
[1735757074879,0.29923,3349.5,3349.4,0.29922]
[1735757077482,4.1348,3349.8,3349.1,3.16712753]
[1735757077678,0.29921,3349.6,3349.5,0.29921]
[1735757077981,4.1348,3349.8,3349.1,3.91525753]
[1735757078776,0.29922,3349.6,3349.5,0.29921]
[1735757080083,3.2078,3349.7,3349.1,3.16712753]
[1735757080282,0.29924,3349.3,3349.2,0.29924]
[1735757081184,0.29927,3349.0,3348.9,0.29926]
[1735757082079,1.3102,3349.2,3348.6,0.4322]
[1735757082386,0.29929,3348.8,3348.7,0.29928]
[1735757084476,3.2078,3348.9,3348.6,0.4322]
[1735757084686,3.2078,3348.9,3348.8,0.29928]
[1735757085186,1.60945,3349.2,3349.1,0.29926]
[1735757089484,1.3102,3349.2,3349.1,0.29926]
[1735757089685,1.60945,3349.2,3349.1,0.29926]
[1735757090479,1.3102,3349.2,3349.1,0.29926]
[1735757090786,0.8709,3349.2,3349.1,0.29926]
[1735757092180,3.2078,3349.3,3349.2,0.29925]
[1735757092577,3.2078,3349.3,3349.2,0.72825]
[1735757093380,0.74152,3349.6,3349.5,0.29922]
[1735757095192,3.6546,3349.7,3349.4,2.27642753]
[1735757095390,3.2078,3349.7,3349.6,0.29921]
[1735757095588,3.50697,3350.1,3349.5,0.9069]
[1735757095891,0.29918,3350.0,3349.9,0.29918]
[1735757096090,0.73718,3350.0,3349.9,0.29918]
[1735757096388,0.438,3350.0,3349.9,0.29918]
[1735757096783,0.438,3350.0,3349.9,0.76358]
[1735757097988,3.2078,3350.1,3349.9,0.4644]
[1735757098188,3.2078,3350.1,3350.0,0.29917]
[1735757102384,3.2078,3350.7,3350.6,0.29912]
[1735757102693,0.4613,3351.0,3350.9,0.29909]
[1735757103387,3.2078,3351.2,3350.8,2.27642753]
[1735757103590,3.2078,3351.2,3351.1,0.29908]
[1735757106295,3.50687,3351.2,3351.1,0.29908]
[1735757108488,3.2078,3351.2,3351.1,0.29908]
[1735757110890,3.2078,3351.2,3351.1,2.57550753]
[1735757111692,3.2078,3351.6,3351.1,2.27642753]
[1735757111889,3.2078,3351.6,3351.5,2.57546753]
[1735757112296,3.2078,3351.6,3351.3,1.176]
[1735757112594,3.2078,3351.6,3351.5,0.29904]
[1735757112998,3.50683,3351.6,3351.5,0.29904]
[1735757113391,3.2078,3351.6,3351.5,0.29904]
[1735757114996,3.2078,3351.6,3351.5,2.57546753]
[1735757115192,0.9084,3352.0,3351.5,2.27642753]
[1735757115393,0.9084,3352.0,3351.9,0.29901]
[1735757115801,0.9084,3352.0,3351.5,1.176]
[1735757116093,3.2078,3351.6,3351.5,1.47504]
[1735757116501,0.9084,3352.0,3351.9,0.29901]
[1735757116702,0.29901,3351.9,3351.8,0.29901]
[1735757116895,1.2074,3352.0,3351.9,0.29901]
[1735757117096,0.9084,3352.0,3351.9,0.29901]
[1735757118198,3.2078,3352.2,3352.1,0.29899]
[1735757118397,3.2078,3352.2,3352.1,2.57541753]
[1735757118897,0.4678,3352.8,3352.1,2.27642753]
[1735757118898,3.2078,3352.6,3352.1,2.27642753]
[1735757119105,3.2078,3352.6,3352.5,2.57537753]
[1735757119303,3.2078,3352.6,3352.1,1.176]
[1735757119493,3.2078,3352.6,3352.2,0.29897]
[1735757119705,0.29897,3352.4,3352.3,0.29897]
[1735757120107,0.29897,3352.4,3352.2,2.27642753]
[1735757120108,3.2078,3352.6,3352.2,2.27642753]
[1735757120296,3.2078,3352.6,3349.3,0.36950101]
[1735757120297,0.8888,3352.3,3352.0,0.29899]
[1735757120494,0.299,3352.0,3351.9,2.57542753]
[1735757120701,0.299,3352.0,3351.9,2.27642753]
[1735757121307,0.29902,3351.8,3351.6,2.27642753]
[1735757121504,1.64132,3351.7,3351.6,2.57545753]
[1735757122199,1.3423,3351.7,3351.6,2.57545753]
[1735757122401,1.3423,3351.7,3351.6,2.27642753]
[1735757122605,1.3423,3351.7,3351.6,0.29903]
[1735757123003,1.3423,3351.7,3351.6,2.27642753]
[1735757123604,1.3423,3351.7,3351.6,2.57545753]
[1735757125502,1.64132,3351.7,3351.6,2.57545753]
[1735757125703,1.3423,3351.7,3351.6,2.57545753]
[1735757127105,1.64132,3351.7,3351.6,2.57545753]
[1735757127300,1.3423,3351.7,3351.6,2.57545753]
[1735757127504,1.64132,3351.7,3351.6,2.57545753]
[1735757128003,1.3423,3351.7,3351.6,2.57545753]
[1735757130911,3.2078,3352.1,3352.0,0.299]
[1735757131111,3.2078,3352.1,3352.0,2.57542753]
[1735757134211,4.0789,3352.8,3352.0,5.48422753]
[1735757134415,4.0789,3352.8,3352.7,0.29893]
[1735757135419,3.2078,3352.8,3352.7,0.29893]
[1735757137522,3.50668,3353.3,3353.2,0.29888]
[1735757138314,0.2989,3353.1,3353.0,0.2989]
[1735757138724,3.2078,3353.3,3352.8,2.27642753]
[1735757139024,0.29891,3353.0,3352.9,0.29891]
[1735757139325,0.2989,3353.1,3353.0,0.2989]
[1735757139620,3.2078,3353.3,3352.6,1.176]
[1735757139824,3.50668,3353.3,3353.2,0.29889]
[1735757140021,3.2078,3353.3,3353.2,0.29889]
[1735757140214,3.50669,3353.3,3353.2,0.29889]
[1735757140616,3.2078,3353.3,3353.2,0.29889]
[1735757154419,3.50668,3353.3,3353.2,0.29889]
[1735757154920,0.2989,3353.2,3353.1,0.29889]
[1735757155728,3.2078,3353.3,3352.4,3.2078]
[1735757156031,0.29895,3352.7,3352.6,0.29893]
[1735757156433,0.29895,3352.6,3352.5,0.29895]
[1735757156623,1.62965,3352.6,3352.5,0.29895]
[1735757156820,1.62964,3352.6,3352.5,0.29895]
[1735757157026,1.3307,3352.6,3352.5,0.29895]
[1735757157424,1.3307,3352.6,3352.5,2.57537753]
[1735757157824,0.8864,3352.6,3352.5,2.57537753]
[1735757158031,3.2078,3352.7,3352.6,0.29894]
[1735757158329,0.29889,3353.2,3353.0,0.29891]
[1735757158330,3.2078,3353.1,3353.0,0.29891]
[1735757162737,3.2078,3353.1,3352.9,0.29891]
[1735757162932,3.2078,3353.1,3352.8,1.175]
[1735757163138,3.5067,3353.1,3353.0,0.29891]
[1735757163924,3.2078,3353.1,3353.0,0.29891]
[1735757168138,0.29891,3353.0,3352.9,0.29891]
[1735757168337,3.2078,3353.1,3352.8,2.27642753]
[1735757168636,3.2078,3353.1,3353.0,0.29891]
[1735757168831,3.5067,3353.1,3353.0,0.29891]
[1735757169036,3.2078,3353.1,3353.0,0.29891]
[1735757169237,0.29892,3353.0,3352.9,0.29892]
[1735757169733,0.29893,3352.8,3352.7,0.29893]
[1735757170331,0.29896,3352.5,3352.4,0.29895]
[1735757170731,0.29894,3352.6,3352.5,0.29895]
[1735757170936,3.50674,3352.7,3352.6,0.29894]
[1735757171235,3.2078,3352.7,3352.6,0.29894]
[1735757171532,3.50673,3352.7,3352.6,0.29894]
[1735757172238,3.2078,3352.7,3352.6,0.29894]
[1735757172438,0.4409,3352.8,3352.7,0.29893]
[1735757172639,0.4584,3352.9,3352.8,0.29892]
[1735757173339,0.4463,3353.1,3352.6,0.8911]
[1735757173637,0.4463,3353.1,3353.0,0.29891]
[1735757175438,3.2078,3353.2,3353.1,0.2989]
[1735757176037,3.2078,3353.2,3353.1,2.57532753]
[1735757176239,3.6323,3353.7,3353.6,0.29885]
[1735757177238,3.6323,3353.7,3353.4,2.27642753]
[1735757177538,3.93115,3353.7,3353.6,0.29885]
[1735757178338,3.6323,3353.7,3353.1,2.27642753]
[1735757178642,3.6323,3353.7,3352.9,3.2078]
[1735757178643,3.50668,3353.3,3353.2,0.29889]
[1735757179937,3.2078,3353.3,3353.2,0.29889]
[1735757180142,3.50668,3353.3,3353.2,0.29889]
[1735757183841,3.2078,3353.3,3353.2,0.29889]
[1735757184037,3.2078,3353.3,3352.9,0.4363]
[1735757184237,3.2078,3353.3,3352.8,2.27642753]
[1735757184238,1.17709,3353.2,3353.1,0.2989]
[1735757184939,0.8782,3353.2,3352.7,0.4274]
[1735757185141,0.29893,3352.8,3352.7,0.29893]
[1735757185540,0.4481,3353.1,3352.2,2.27642753]
[1735757185742,0.29895,3352.6,3352.5,0.29894]
[1735757186040,0.4588,3352.7,3352.6,0.29894]
[1735757186041,0.75774,3352.7,3352.6,0.29894]
[1735757186942,0.4588,3352.7,3352.1,3.6355]
[1735757187149,3.50676,3352.4,3352.3,0.29897]
[1735757187947,3.2078,3352.4,3352.3,0.29897]
[1735757188446,3.2078,3352.4,3352.3,1.15417]
[1735757189246,3.2078,3352.4,3352.3,0.73097]
[1735757189449,3.2078,3352.4,3352.3,0.29897]
[1735757192247,3.50677,3352.4,3352.3,0.29897]
[1735757192451,3.93577,3352.4,3352.3,0.29897]
[1735757192858,0.299,3352.1,3352.0,0.29899]
[1735757193273,3.6368,3352.4,3351.6,5.48422753]
[1735757193569,0.29897,3352.3,3352.2,0.29897]
[1735757193866,3.6368,3352.4,3351.9,2.27642753]
[1735757194066,3.93577,3352.4,3352.3,0.29897]
[1735757194367,0.29897,3352.3,3352.2,0.29897]
[1735757194661,3.6368,3352.4,3352.3,0.29897]
[1735757195561,3.2078,3352.4,3352.3,0.29897]
[1735757195964,3.2078,3352.4,3352.3,0.75537]
[1735757197761,3.2078,3353.0,3352.9,0.29892]
[1735757198875,3.2078,3353.5,3353.4,0.29887]
[1735757199761,3.50666,3353.5,3353.4,0.29887]
[1735757201470,3.2078,3353.5,3353.4,0.29887]
[1735757202168,3.50666,3353.5,3353.4,0.29887]
[1735757202369,3.2078,3353.5,3353.4,0.29887]
[1735757202671,3.50666,3353.5,3353.4,0.29887]
[1735757203772,0.29889,3353.3,3353.2,0.29888]
[1735757203969,0.29889,3353.2,3353.1,0.29889]
[1735757204176,0.76419,3353.2,3353.1,0.29889]
[1735757204474,0.76419,3353.2,3352.6,2.27642753]
[1735757204475,0.4653,3353.2,3352.6,2.27642753]
[1735757204672,3.2078,3352.9,3352.6,2.27642753]
[1735757204868,3.2078,3352.9,3352.8,0.29892]
[1735757205175,3.2078,3352.9,3352.4,4.3858]
[1735757205367,0.29893,3352.8,3352.7,0.29893]
[1735757206771,3.2078,3352.9,3352.4,3.2078]
[1735757206772,3.50672,3352.9,3352.8,0.29892]
[1735757207374,3.2078,3352.9,3352.8,0.29892]
[1735757208267,3.50672,3352.9,3352.8,0.29892]
[1735757208468,3.2078,3352.9,3352.8,0.29892]
[1735757211072,0.4429,3353.1,3353.0,0.29891]
[1735757211275,3.2078,3353.3,3353.2,0.29889]
[1735757213877,3.50668,3353.3,3353.2,0.29889]
[1735757215274,0.2989,3353.2,3353.1,0.29889]
[1735757215483,0.7514,3353.2,3353.1,0.29889]
[1735757215977,0.4525,3353.2,3353.1,0.29889]
[1735757216172,0.4525,3353.2,3353.1,0.75199]
[1735757216373,0.4525,3353.2,3353.1,0.29889]
[1735757222576,3.2078,3353.4,3353.3,0.29888]
[1735757223579,3.50667,3353.5,3353.4,0.29887]
[1735757223983,3.93137,3353.5,3353.4,0.29887]
[1735757224982,3.6325,3353.5,3353.4,0.29887]
[1735757226593,3.2078,3353.5,3353.4,0.29887]
[1735757226789,3.2078,3353.9,3353.8,0.29884]
[1735757227086,3.2078,3353.9,3353.8,2.57526753]
[1735757229077,3.2078,3353.9,3353.8,0.29884]
[1735757229281,0.29886,3353.6,3353.4,0.4562]
[1735757229479,0.29886,3353.6,3353.5,0.29886]
[1735757229676,3.2078,3353.8,3353.4,0.29886]
[1735757229677,0.29887,3353.5,3353.4,0.29886]
[1735757230086,3.2078,3353.8,3353.2,2.27642753]
[1735757230379,0.29889,3353.3,3353.2,0.29889]
[1735757230585,3.2078,3353.4,3352.9,3.88482753]
[1735757230786,3.2078,3353.4,3353.3,0.29888]
[1735757231186,0.29885,3353.7,3353.6,0.29885]
[1735757231385,0.29886,3353.5,3353.2,2.27642753]
[1735757231579,3.2078,3353.8,3353.2,2.27642753]
[1735757231885,0.29885,3353.7,3353.6,0.29885]
[1735757233191,0.29886,3353.6,3353.5,0.29886]
[1735757233885,3.2078,3353.8,3353.2,2.27642753]
[1735757234084,0.29885,3353.7,3353.6,0.29885]
[1735757234389,3.2078,3353.8,3353.2,2.27642753]
[1735757234585,0.29886,3353.6,3353.5,0.29886]
[1735757235091,3.2078,3353.8,3353.1,0.4453]
[1735757235286,0.4622,3353.9,3353.2,0.29888]
[1735757235287,0.29889,3353.3,3353.2,0.29888]
[1735757235490,3.2078,3353.4,3353.3,0.29888]
[1735757235491,3.50668,3353.4,3353.3,0.29888]
[1735757237000,3.2078,3353.4,3353.3,0.29888]
[1735757237489,3.50667,3353.4,3353.3,0.29888]
[1735757237888,3.2078,3353.4,3353.3,0.29888]
[1735757238387,3.94687,3353.4,3353.3,0.29888]
[1735757239690,3.648,3353.4,3353.3,0.29888]
[1735757239899,3.94687,3353.4,3353.3,0.29888]
[1735757242393,0.29889,3353.3,3353.2,0.29889]
[1735757242596,0.4487,3353.3,3353.2,0.29889]
[1735757242799,0.4487,3353.3,3353.2,2.57531753]
[1735757243297,3.648,3353.4,3353.2,2.27642753]
[1735757243600,3.2078,3353.4,3353.3,0.29888]
[1735757243801,3.2078,3353.4,3353.3,0.73538]
[1735757247803,3.2078,3353.4,3353.3,0.29888]
[1735757249098,0.29886,3353.6,3353.2,2.27642753]
[1735757249301,0.29886,3353.6,3353.5,0.29886]
[1735757249907,3.6582,3353.7,3353.6,0.29885]
[1735757250094,3.6582,3353.7,3353.2,2.27642753]
[1735757250299,0.29886,3353.6,3353.5,0.29885]
[1735757250906,3.6582,3353.7,3353.2,2.27642753]
[1735757251103,0.29888,3353.4,3353.3,0.29887]
[1735757251807,0.29887,3353.5,3353.4,0.29886]
[1735757253601,3.6582,3353.7,3352.9,0.4324]
[1735757253908,0.29889,3353.3,3353.2,0.29888]
[1735757254403,0.4468,3353.4,3352.9,0.4324]
[1735757254604,0.4489,3353.2,3353.1,0.2989]
[1735757255499,0.74779,3353.2,3353.1,0.2989]
[1735757255699,0.4489,3353.2,3353.1,0.2989]
[1735757257102,0.8762,3353.2,3353.1,0.2989]
[1735757257902,1.17509,3353.2,3353.1,0.2989]
[1735757259415,0.29891,3353.1,3353.0,0.2989]
[1735757260607,4.83125,3353.2,3352.6,3.2078]
[1735757260807,0.29893,3352.8,3352.7,0.29893]
[1735757261805,0.29892,3352.9,3352.8,0.29891]
[1735757264014,4.084,3353.2,3352.2,4.3828]
[1735757264205,3.50675,3352.6,3352.5,0.29895]
[1735757264406,3.2078,3352.6,3352.2,3.2078]
[1735757264601,1.60756,3352.5,3352.4,0.29895]
[1735757264800,0.29897,3352.4,3352.3,0.29897]
[1735757265000,1.3086,3352.5,3352.1,0.29898]
[1735757265001,0.29899,3352.2,3352.1,0.29898]
[1735757265209,0.29902,3351.8,3351.7,0.29901]
[1735757265705,0.29905,3351.4,3351.3,0.29905]
[1735757265914,0.8907,3351.7,3351.0,6.36082753]
[1735757266103,0.29904,3351.6,3351.4,0.29904]
[1735757266503,0.29904,3351.6,3351.5,0.29904]
[1735757268810,3.50684,3351.6,3351.5,0.29904]
[1735757269407,3.2078,3351.6,3351.5,0.29904]
[1735757270315,3.50683,3351.6,3351.5,0.29904]
[1735757271013,3.2078,3351.6,3351.0,3.15302753]
[1735757271217,0.29905,3351.5,3351.4,0.29905]
[1735757271410,0.29907,3351.3,3351.1,0.29907]
[1735757271610,3.2078,3351.6,3351.0,0.8766]
[1735757271807,0.74067,3351.2,3351.1,0.29907]
[1735757272612,0.4416,3351.2,3351.1,0.29907]
[1735757272809,0.4416,3351.2,3350.8,3.2078]
[1735757273016,0.29909,3351.0,3350.9,0.29909]
[1735757273416,0.8756,3351.1,3350.8,3.2078]
[1735757273619,0.8756,3351.1,3351.0,0.29909]
[1735757273819,1.17468,3351.1,3351.0,0.29909]
[1735757275017,0.29909,3351.0,3350.9,0.29909]
[1735757276911,3.2078,3351.3,3350.6,0.4404]
[1735757276912,3.2078,3351.3,3350.7,2.27642753]
[1735757277113,3.2078,3351.3,3351.2,0.29907]
[1735757277610,3.2078,3351.3,3351.2,41.09907]
[1735757278317,3.2078,3351.3,3351.2,0.29907]
[1735757278822,3.50686,3351.3,3351.2,0.29907]
[1735757280215,3.2078,3351.3,3351.1,0.457]
[1735757280410,3.2078,3351.3,3351.2,0.29907]
[1735757280617,0.29907,3351.2,3351.1,0.75607]
[1735757280817,0.76437,3351.2,3351.1,0.29907]
[1735757281017,0.4653,3351.2,3350.9,1.176]
[1735757281213,0.76437,3351.2,3351.1,0.29908]
[1735757281415,0.29909,3351.0,3350.9,0.29909]
[1735757281609,0.4653,3351.2,3350.8,0.4308]
[1735757281809,0.2991,3350.9,3350.8,0.2991]
[1735757282618,3.5069,3350.9,3350.8,0.2991]
[1735757283011,0.29913,3350.6,3350.5,0.29913]
[1735757283217,0.29913,3350.5,3350.4,0.29913]
[1735757283421,0.8654,3350.8,3350.2,0.4365]
[1735757283624,0.29913,3350.6,3350.5,0.29913]
[1735757283919,0.4258,3350.8,3350.4,2.27642753]
[1735757284120,3.2078,3350.9,3350.8,0.2991]
[1735757284526,3.2078,3350.9,3350.8,1.1905]
[1735757285218,3.2078,3351.5,3350.8,4.0992]
[1735757285413,3.2078,3351.5,3351.4,0.29905]
[1735757286318,3.2078,3351.9,3351.8,0.29901]
[1735757286729,3.50681,3351.9,3351.8,0.29901]
[1735757289724,3.2078,3351.9,3351.8,0.29901]
[1735757291228,3.2078,3352.3,3352.2,0.29898]
[1735757291418,3.6606,3352.7,3352.6,0.29894]
[1735757291620,3.2078,3352.7,3352.6,0.29894]
[1735757291826,3.50673,3352.7,3352.6,0.29894]
[1735757292026,3.50673,3352.7,3352.3,0.9169]
[1735757292328,3.50673,3352.7,3352.5,0.29895]
[1735757292821,0.29894,3352.6,3352.5,0.29895]
[1735757293221,0.29894,3352.6,3352.4,0.29895]
[1735757293430,0.431,3352.5,3352.4,0.29895]
[1735757294626,0.29895,3352.6,3352.3,0.9169]
[1735757294826,0.29895,3352.6,3352.5,0.29895]
[1735757295226,3.2078,3352.7,3352.3,0.9169]
[1735757295426,3.50674,3352.7,3352.6,0.29894]
[1735757295630,0.29895,3352.6,3352.5,0.29895]
[1735757296024,0.29895,3352.6,3352.3,0.9169]
[1735757296341,3.2078,3352.7,3352.3,0.9169]
[1735757296631,3.2078,3352.7,3352.6,0.29894]
[1735757296931,3.50673,3352.7,3352.6,0.29894]
[1735757297121,3.2078,3352.7,3352.6,0.29894]
[1735757299726,3.2078,3353.1,3353.0,0.29891]
[1735757299930,3.2078,3353.1,3353.0,2.57533753]
[1735757306836,0.9002,3353.6,3353.5,0.29886]
[1735757307033,0.9002,3353.6,3353.5,2.57528753]
[1735757307241,1.19905,3353.6,3353.5,2.57528753]
[1735757307736,0.9002,3353.6,3353.5,2.57528753]
[1735757311338,1.19905,3353.6,3353.5,0.29886]
[1735757312538,0.9002,3353.6,3353.5,0.29886]
[1735757312840,1.19905,3353.6,3353.5,0.29886]
[1735757313740,0.9002,3353.6,3353.5,0.29886]
[1735757314349,1.19905,3353.6,3353.5,0.29886]
[1735757317142,0.2989,3353.2,3353.1,0.29888]
[1735757317436,0.9002,3353.6,3353.3,0.29887]
[1735757317437,0.29888,3353.4,3353.3,0.29887]
[1735757319339,0.9002,3353.6,3353.0,3.2078]
[1735757319734,0.2989,3353.2,3353.1,0.29889]
[1735757320131,0.7245,3353.2,3353.1,0.29889]
[1735757320536,0.4256,3353.2,3352.9,2.27642753]
[1735757320738,0.4256,3353.2,3353.0,0.2989]
[1735757320739,0.74781,3353.1,3353.0,0.2989]
[1735757323447,0.4489,3353.1,3352.9,2.27642753]
[1735757323640,0.74581,3353.0,3352.9,2.57533753]
[1735757324946,0.74581,3353.0,3352.9,0.29891]
[1735757325350,0.4469,3353.0,3352.9,2.57533753]
[1735757326449,0.4489,3353.1,3353.0,0.29891]
[1735757326842,0.4489,3353.1,3353.0,0.74791]
[1735757327352,0.4489,3353.1,3353.0,0.29891]
[1735757327353,0.9079,3353.1,3353.0,0.29891]
[1735757327849,1.2068,3353.1,3353.0,0.29891]
[1735757328452,0.9079,3353.1,3353.0,0.29891]
[1735757330062,1.2068,3353.1,3353.0,0.29891]
[1735757330552,0.9079,3353.1,3353.0,0.29891]
[1735757332143,3.2078,3353.3,3353.0,0.4275]
[1735757332456,3.2078,3353.3,3353.2,0.29889]
[1735757332646,3.2078,3353.3,3353.2,2.57531753]
[1735757333042,4.5622,3353.7,3353.4,0.29886]
[1735757333255,0.29887,3353.5,3353.4,0.29886]
[1735757333945,4.5622,3353.7,3353.0,0.4275]
[1735757334146,3.2078,3353.3,3353.2,0.29888]
[1735757334447,3.50668,3353.3,3353.2,0.29888]
[1735757341055,3.2078,3353.3,3352.9,2.27642753]
[1735757341256,0.29891,3353.1,3353.0,0.2989]
[1735757341662,1.18191,3353.1,3353.0,0.2989]
[1735757342158,0.883,3353.1,3352.9,2.27642753]
[1735757342463,0.29893,3352.8,3352.7,0.29893]
[1735757342659,3.50673,3352.8,3352.7,0.29893]
[1735757342961,3.2078,3352.8,3352.7,0.29893]
[1735757344765,3.50672,3352.8,3352.7,0.29893]
[1735757346166,3.2078,3352.8,3352.7,0.29893]
[1735757350566,0.29892,3352.9,3352.8,0.29892]
[1735757350759,3.50672,3352.9,3352.8,0.29892]
[1735757352569,0.29895,3352.6,3352.5,0.29894]
[1735757352764,1.16993,3352.8,3352.2,0.29897]
[1735757352966,0.299,3352.1,3352.0,0.29899]
[1735757353172,3.2078,3352.4,3351.8,2.27642753]
[1735757353466,0.4226,3352.0,3351.9,0.299]
[1735757355674,0.7216,3352.0,3351.9,0.299]
[1735757355872,0.7216,3352.0,3351.8,0.29901]